bitfinex-derivatives/quotes_BTCF0:USTF0_20250330
["timestamp","ask_amount","ask_price","bid_price","bid_amount"]
[1743339191601,0.1211283,83074.0,83073.0,1.6849297]
[1743339193400,0.1211283,83074.0,83073.0,0.1849297]
[1743339194506,0.1544283,83074.0,83073.0,0.1849297]
[1743339196098,0.1211283,83074.0,83073.0,0.1849297]
[1743339197698,0.1204083,83074.0,83073.0,0.1849297]
[1743339198102,0.1211283,83074.0,83073.0,0.1849297]
[1743339199702,0.1204083,83074.0,83073.0,0.1849297]
[1743339199902,0.1211283,83074.0,83073.0,0.1849297]
[1743339200309,0.1514283,83074.0,83073.0,0.1849297]
[1743339202212,0.1507083,83074.0,83073.0,0.1849297]
[1743339202405,0.1514283,83074.0,83073.0,0.1849297]
[1743339203402,0.1507083,83074.0,83073.0,0.1849297]
[1743339203607,0.1515483,83074.0,83073.0,0.1849297]
[1743339203808,0.1212483,83074.0,83073.0,0.1849297]
[1743339204205,0.00084,83074.0,83073.0,0.1849297]
[1743339204407,0.0004,83076.0,83075.0,0.1204068]
[1743339204714,0.0004,83076.0,83075.0,0.1211668]
[1743339205116,0.0004,83076.0,83075.0,1.6211668]
[1743339205819,0.0014,83076.0,83075.0,1.6211668]
[1743339212810,0.0014,83076.0,83075.0,1.9819668]
[1743339213017,0.0014,83076.0,83075.0,2.0982068]
[1743339213924,0.1218054,83076.0,83075.0,1.9819668]
[1743339214131,0.4826054,83076.0,83075.0,0.00076]
[1743339214315,0.4833254,83076.0,83075.0,0.00076]
[1743339215420,0.4833254,83076.0,83075.0,0.1211668]
[1743339216430,0.49559259,83076.0,83075.0,0.1211668]
[1743339218635,0.49559259,83076.0,83075.0,0.00076]
[1743339219035,0.49559259,83076.0,83075.0,0.1211668]
[1743339228139,0.13479259,83076.0,83075.0,0.1211668]
[1743339228344,0.4833254,83076.0,83075.0,0.1211668]
[1743339228739,0.36292,83076.0,83075.0,0.1852668]
[1743339229249,0.4833254,83076.0,83075.0,0.1852668]
[1743339229542,0.4833254,83076.0,83075.0,1.6852668]
[1743339229742,0.4833254,83076.0,83075.0,1.69776349]
[1743339230347,0.1225254,83076.0,83075.0,1.69776349]
[1743339230646,0.00212,83076.0,83075.0,1.69776349]
[1743339230839,0.0014,83076.0,83075.0,1.69776349]
[1743339231635,0.1218054,83076.0,83075.0,1.69776349]
[1743339232634,0.0014,83076.0,83075.0,1.69776349]
[1743339234442,0.1218054,83076.0,83075.0,1.69776349]
[1743339235945,0.0014,83076.0,83075.0,1.69776349]
[1743339238637,0.0014,83076.0,83075.0,1.84776349]
[1743339238844,0.0014,83076.0,83075.0,1.92246103]
[1743339239241,0.18036002,83091.0,83090.0,0.1203851]
[1743339239446,0.18116002,83091.0,83090.0,0.5982251]
[1743339239952,0.18116002,83091.0,83090.0,0.6286251]
[1743339240344,0.13126002,83091.0,83090.0,0.6286251]
[1743339241053,0.13126002,83091.0,83090.0,0.63764624]
[1743339242143,0.13126002,83091.0,83090.0,0.85401883]
[1743339242144,0.0008,83091.0,83090.0,0.85401883]
[1743339242356,0.0004,83092.0,83091.0,0.1203836]
[1743339242545,0.0004,83092.0,83091.0,0.1211436]
[1743339242745,0.0004,83092.0,83091.0,0.1515436]
[1743339242945,0.0004,83092.0,83091.0,0.1831436]
[1743339243547,0.0004,83092.0,83091.0,0.5744436]
[1743339243948,0.0004,83092.0,83091.0,0.2136436]
[1743339244151,0.0004,83092.0,83091.0,0.5744436]
[1743339248554,0.0004,83092.0,83091.0,0.6906436]
[1743339249962,0.0004,83092.0,83091.0,0.3298436]
[1743339250160,0.0004,83092.0,83091.0,0.6906436]
[1743339253557,0.00018053,83099.0,83098.0,0.1203735]
[1743339253864,0.00018053,83099.0,83098.0,0.4818935]
[1743339254258,0.00018053,83099.0,83098.0,1.9818935]
[1743339254456,0.00018053,83099.0,83098.0,2.0450935]
[1743339259470,0.00018053,83099.0,83098.0,2.1612535]
[1743339260970,0.00018053,83099.0,83098.0,1.8004535]
[1743339261170,0.00018053,83099.0,83098.0,2.1612535]
[1743339261371,0.00018053,83099.0,83098.0,1.8004535]
[1743339261567,0.00018053,83099.0,83098.0,2.1612535]
[1743339262276,0.00018053,83099.0,83098.0,1.8004535]
[1743339262571,0.00018053,83099.0,83098.0,2.1612535]
[1743339262974,0.00018053,83099.0,83098.0,2.0450935]
[1743339263176,0.00018053,83099.0,83098.0,2.1612535]
[1743339265575,0.12055253,83099.0,83098.0,1.9818935]
[1743339265774,0.00018053,83099.0,83098.0,1.9818935]
[1743339265972,0.15155253,83099.0,83098.0,1.86152]
[1743339266175,0.21515253,83099.0,83098.0,1.9818935]
[1743339266673,0.22770865,83099.0,83098.0,1.86152]
[1743339266972,0.59794549,83099.0,83098.0,1.50072]
[1743339267172,0.74866549,83099.0,83098.0,0.00072]
[1743339267473,0.1203793,83094.0,83093.0,0.28833609]
[1743339267679,0.13061614,83094.0,83093.0,0.20065609]
[1743339268176,0.13061614,83094.0,83093.0,0.32103679]
[1743339268969,0.13061614,83094.0,83093.0,0.1211007]
[1743339271282,0.13464358,83094.0,83093.0,0.1211007]
[1743339272378,0.24280105,83094.0,83093.0,0.1211007]
[1743339272572,0.23323677,83094.0,83093.0,0.1211007]
[1743339272780,0.24271585,83094.0,83093.0,0.1211007]
[1743339275980,0.13455838,83094.0,83093.0,0.1211007]
[1743339276185,0.13455838,83094.0,83093.0,0.2127007]
[1743339276488,0.15855838,83094.0,83093.0,0.2127007]
[1743339277175,0.51935838,83094.0,83093.0,0.2127007]
[1743339277575,0.51545838,83094.0,83093.0,0.2127007]
[1743339277986,0.51935838,83094.0,83093.0,0.2127007]
[1743339278586,0.51545838,83094.0,83093.0,0.2127007]
[1743339278973,0.5059793,83094.0,83093.0,0.2127007]
[1743339279185,0.5099793,83094.0,83093.0,0.06172]
[1743339280385,0.5099793,83094.0,83093.0,0.03092]
[1743339280784,0.1203938,83084.0,83083.0,0.14886]
[1743339281082,0.1212338,83084.0,83083.0,0.14958]
[1743339281291,0.1203938,83084.0,83083.0,0.1840125]
[1743339282084,0.1203938,83084.0,83083.0,0.2155125]
[1743339282279,0.1203938,83084.0,83083.0,0.3359059]
[1743339282480,0.1443938,83084.0,83083.0,0.3359059]
[1743339284580,0.1451938,83084.0,83083.0,0.3359059]
[1743339285383,0.1443938,83084.0,83083.0,0.3359059]
[1743339285584,0.1452338,83084.0,83083.0,0.3359059]
[1743339286783,0.1443938,83084.0,83083.0,0.3359059]
[1743339287086,0.1211538,83084.0,83083.0,0.3359059]
[1743339289092,0.1203938,83084.0,83083.0,0.3359059]
[1743339289294,0.1211538,83084.0,83083.0,0.3359059]
[1743339290595,0.1203938,83084.0,83083.0,0.3359059]
[1743339290796,0.1211538,83084.0,83083.0,0.3359059]
[1743339292792,0.1203938,83084.0,83083.0,0.3359059]
[1743339292997,0.1212338,83084.0,83083.0,0.3359059]
[1743339294099,0.1203938,83084.0,83083.0,0.3359059]
[1743339294294,0.1212738,83084.0,83083.0,0.3359059]
[1743339294500,0.00088,83084.0,83083.0,0.3359059]
[1743339294687,0.00018053,83099.0,83091.0,0.1203836]
[1743339294888,0.00018053,83099.0,83094.0,0.1203793]
[1743339295092,0.14487932,83095.0,83094.0,0.1210593]
[1743339295493,0.26525712,83095.0,83094.0,1.6210593]
[1743339295705,0.26445712,83095.0,83094.0,1.6210593]
[1743339297100,0.14407932,83095.0,83094.0,1.6210593]
[1743339297302,0.14407932,83095.0,83094.0,1.63347837]
[1743339297508,0.1203768,83096.0,83095.0,0.1203778]
[1743339297802,0.1203768,83096.0,83095.0,0.1210978]
[1743339297998,0.1203768,83096.0,83095.0,0.2147978]
[1743339302115,0.1203768,83096.0,83095.0,0.09442]
[1743339302413,0.1211368,83096.0,83095.0,0.06342]
[1743339302608,0.1211368,83096.0,83095.0,0.0306]
[1743339302803,0.1863368,83096.0,83095.0,0.0306]
[1743339303412,0.1863368,83096.0,83095.0,0.0615]
[1743339303616,0.19872866,83096.0,83095.0,0.06214]
[1743339303912,0.1863368,83096.0,83095.0,0.06214]
[1743339305409,0.2176368,83096.0,83095.0,0.06214]
[1743339306318,0.23022413,83096.0,83095.0,0.06214]
[1743339307706,0.59102413,83096.0,83095.0,0.06214]
[1743339308516,0.59102413,83096.0,83095.0,0.03124]
[1743339308721,0.59102413,83096.0,83095.0,0.00064]
[1743339308916,0.1203778,83095.0,83094.0,8e-05]
[1743339309123,0.1203778,83095.0,83083.0,0.0309]
[1743339309124,0.1203952,83083.0,83067.0,1.93298872]
[1743339309310,0.4819552,83083.0,83079.0,0.0311]
[1743339310207,0.5442552,83083.0,83079.0,0.0311]
[1743339312825,0.9050552,83083.0,83079.0,0.0311]
[1743339314014,0.9050552,83083.0,83079.0,0.0619]
[1743339315516,0.8427552,83083.0,83079.0,0.0619]
[1743339315715,0.8427552,83083.0,83082.0,0.12057723]
[1743339315923,0.8427552,83083.0,83082.0,0.12121723]
[1743339316221,0.8427552,83083.0,83082.0,1.50082053]
[1743339317622,0.8427552,83083.0,83082.0,0.00082053]
[1743339317925,0.8427552,83083.0,83082.0,0.00018053]
[1743339318317,0.8427552,83083.0,83082.0,0.00094053]
[1743339318719,0.8427552,83083.0,83082.0,0.00018053]
[1743339319115,0.8427552,83083.0,83082.0,0.00098053]
[1743339319919,0.1211552,83083.0,83082.0,0.00098053]
[1743339320126,0.4819552,83083.0,83082.0,0.00098053]
[1743339320827,0.4819552,83083.0,83082.0,0.00018053]
[1743339321014,0.4819552,83083.0,83082.0,0.00090053]
[1743339321218,0.4819552,83083.0,83082.0,0.06500053]
[1743339321624,0.4819552,83083.0,83082.0,0.18539723]
[1743339324323,0.4819552,83083.0,83082.0,0.06500053]
[1743339325633,0.1211552,83083.0,83082.0,0.06500053]
[1743339325926,0.4819552,83083.0,83082.0,0.06500053]
[1743339327230,0.5146552,83083.0,83082.0,0.06500053]
[1743339328131,0.1538552,83083.0,83082.0,0.06500053]
[1743339328327,0.5146552,83083.0,83082.0,0.06500053]
[1743339329724,0.1538552,83083.0,83082.0,0.06500053]
[1743339329926,0.5146552,83083.0,83082.0,0.06500053]
[1743339331120,0.5146552,83083.0,83082.0,0.06428053]
[1743339331919,0.5146552,83083.0,83082.0,0.06492053]
[1743339333621,0.5146552,83083.0,83082.0,0.06428053]
[1743339334328,0.1538552,83083.0,83082.0,0.06428053]
[1743339334635,0.5146552,83083.0,83082.0,0.06492053]
[1743339334832,0.5146552,83083.0,83082.0,0.06428053]
[1743339335220,0.5468552,83083.0,83082.0,0.06428053]
[1743339336937,0.5468552,83083.0,83082.0,0.06492053]
[1743339337931,0.5468552,83083.0,83082.0,0.06428053]
[1743339338834,0.4819552,83083.0,83082.0,0.06428053]
[1743339339538,0.4819552,83083.0,83082.0,0.18467723]
[1743339339735,0.4819552,83083.0,83082.0,1.68531723]
[1743339343737,0.4819552,83083.0,83082.0,0.18531723]
[1743339344129,0.1211552,83083.0,83082.0,0.18531723]
[1743339347431,0.1203952,83083.0,83082.0,0.18531723]
[1743339347637,0.1211552,83083.0,83082.0,0.18531723]
[1743339349842,0.1211552,83083.0,83082.0,0.06492053]
[1743339350140,0.1211552,83083.0,83082.0,0.06428053]
[1743339350331,0.1542552,83083.0,83082.0,0.06492053]
[1743339351335,0.5150552,83083.0,83082.0,0.06492053]
[1743339352337,0.5150552,83083.0,83082.0,0.18531723]
[1743339354139,0.5150552,83083.0,83082.0,0.06492053]
[1743339355043,0.5150552,83083.0,83082.0,0.18531723]
[1743339356944,0.4819552,83083.0,83082.0,0.18531723]
[1743339360242,0.4819552,83083.0,83082.0,1.68531723]
[1743339360443,0.1211552,83083.0,83082.0,1.68531723]
[1743339363648,0.4819552,83083.0,83082.0,1.68531723]
[1743339365041,0.36156,83083.0,83082.0,1.68531723]
[1743339368355,0.36156,83083.0,83082.0,1.69756517]
[1743339368547,0.3608,83083.0,83082.0,1.69756517]
[1743339371444,0.120388,83088.0,83087.0,0.1203894]
[1743339371641,0.121148,83088.0,83087.0,0.1210294]
[1743339372246,0.121148,83088.0,83087.0,0.1864294]
[1743339372647,0.00076,83088.0,83087.0,0.1864294]
[1743339373653,0.121148,83088.0,83087.0,0.1864294]
[1743339374452,0.00076,83088.0,83087.0,0.1864294]
[1743339375547,0.1203858,83090.0,83089.0,0.1203865]
[1743339375757,0.1211458,83090.0,83089.0,0.1210265]
[1743339376155,0.1211458,83090.0,83089.0,0.1860265]
[1743339387265,0.1211458,83090.0,83089.0,0.1527265]
[1743339387656,0.00076,83090.0,83089.0,0.1527265]
[1743339387870,0.1211451,83090.0,83089.0,0.1527265]
[1743339388463,0.00076,83090.0,83089.0,0.1527265]
[1743339389663,0.00076,83090.0,83089.0,1.6527265]
[1743339389861,0.0601912,83092.0,83091.0,0.1805719]
[1743339390061,0.0609512,83092.0,83091.0,0.2747119]
[1743339392775,0.0609512,83092.0,83091.0,0.28679708]
[1743339396476,0.0601912,83092.0,83091.0,0.28679708]
[1743339396670,0.0609512,83092.0,83091.0,0.28679708]
[1743339397071,0.0601912,83092.0,83091.0,0.28679708]
[1743339397266,0.0609512,83092.0,83091.0,0.2747119]
[1743339399471,0.0601912,83092.0,83091.0,0.2747119]
[1743339399679,0.0609512,83092.0,83091.0,0.28688533]
[1743339401681,0.0610712,83092.0,83091.0,0.28688533]
[1743339401880,0.00088,83092.0,83091.0,0.28688533]
[1743339402081,0.1203822,83092.0,83091.0,0.28688533]
[1743339402377,0.1211422,83092.0,83091.0,0.28688533]
[1743339405269,0.1211422,83092.0,83091.0,0.1543312]
[1743339405666,0.1211422,83092.0,83091.0,0.00064]
[1743339405973,0.1862422,83092.0,83091.0,0.00064]
[1743339406681,0.1862422,83092.0,83091.0,0.1210236]
[1743339407069,0.1862422,83092.0,83091.0,0.1842236]
[1743339407381,0.1533422,83092.0,83091.0,0.1842236]
[1743339407570,0.00076,83092.0,83091.0,0.2152236]
[1743339407881,0.1211422,83092.0,83091.0,0.2152236]
[1743339410485,0.4819422,83092.0,83091.0,0.2152236]
[1743339411069,0.36156,83092.0,83091.0,0.2152236]
[1743339411667,0.1211422,83092.0,83091.0,0.2152236]
[1743339420480,0.1211422,83092.0,83091.0,0.06384]
[1743339420790,0.1822422,83092.0,83091.0,0.00064]
[1743339420987,0.19442823,83092.0,83091.0,0.00064]
[1743339421185,0.1203865,83089.0,83088.0,0.21634953]
[1743339421388,0.48214651,83089.0,83088.0,0.21730953]
[1743339421586,0.1203923,83085.0,83084.0,0.2881839]
[1743339421789,0.23771231,83085.0,83084.0,0.2888239]
[1743339422582,0.3580659,83085.0,83084.0,0.2888239]
[1743339425680,0.3580659,83085.0,83084.0,0.00064]
[1743339425891,0.1203952,83083.0,83079.0,0.240801]
[1743339426194,0.4825152,83083.0,83079.0,0.1204004]
[1743339426385,0.4825152,83083.0,83082.0,0.12057723]
[1743339426590,0.5438152,83083.0,83082.0,0.12057723]
[1743339426789,0.5438152,83083.0,83082.0,0.00018053]
[1743339428484,0.5438152,83083.0,83082.0,0.12057723]
[1743339428690,0.5133152,83083.0,83082.0,0.12121723]
[1743339429080,0.5133152,83083.0,83082.0,1.62121723]
[1743339429789,0.5133152,83083.0,83082.0,0.12121723]
[1743339430786,0.5133152,83083.0,83082.0,0.00082053]
[1743339430990,0.5133152,83083.0,83082.0,0.00018053]
[1743339431187,0.0602043,83074.0,83047.0,8e-05]
[1743339431499,0.1204141,83070.0,83069.0,0.0309]
[1743339431693,0.49473573,83070.0,83069.0,0.0309]
[1743339431888,0.49473573,83070.0,83069.0,0.03166]
[1743339432089,0.49473573,83070.0,83069.0,0.0309]
[1743339433398,0.4826541,83070.0,83069.0,0.1533155]
[1743339433599,0.4826541,83070.0,83069.0,0.1559555]
[1743339433796,0.4826541,83070.0,83069.0,0.1867555]
[1743339436493,0.4826541,83070.0,83069.0,0.2171555]
[1743339436994,0.4826541,83070.0,83069.0,0.09674]
[1743339437198,0.5151541,83070.0,83069.0,0.0961]
[1743339437500,0.5151541,83070.0,83069.0,0.2171555]
[1743339438103,0.5151541,83070.0,83067.0,0.00048154]
[1743339438104,0.120417,83068.0,83067.0,0.00048154]
[1743339438298,0.12205701,83068.0,83067.0,0.00048154]
[1743339438602,0.12205701,83068.0,83067.0,0.03298154]
[1743339438800,0.18425701,83068.0,83067.0,0.03298154]
[1743339439402,0.18425701,83068.0,83067.0,0.03498154]
[1743339439603,0.90585701,83068.0,83067.0,0.03698154]
[1743339441616,0.90585701,83068.0,83061.0,0.00018053]
[1743339441617,0.0602108,83065.0,83061.0,0.00018053]
[1743339441920,0.1204257,83062.0,83061.0,0.00018053]
[1743339442121,0.12206571,83062.0,83061.0,0.00018053]
[1743339442721,0.12206571,83062.0,83061.0,0.00418053]
[1743339443422,0.12206571,83062.0,83061.0,0.06628053]
[1743339443720,0.12206571,83062.0,83061.0,0.07028053]
[1743339444321,0.18646571,83062.0,83061.0,0.07028053]
[1743339446923,0.54726571,83062.0,83061.0,0.07028053]
[1743339448420,0.54726571,83062.0,83061.0,0.19070763]
[1743339448715,0.51456571,83062.0,83061.0,0.19070763]
[1743339448925,0.48286571,83062.0,83061.0,0.19070763]
[1743339450931,0.51386571,83062.0,83061.0,0.19070763]
[1743339451731,0.48286571,83062.0,83061.0,0.19070763]
[1743339453629,0.48286571,83062.0,83061.0,0.07028053]
[1743339453824,0.54606571,83062.0,83061.0,0.07028053]
[1743339462139,0.18526571,83062.0,83061.0,0.07028053]
[1743339462640,0.54606571,83062.0,83061.0,0.07028053]
[1743339464245,0.18526571,83062.0,83061.0,0.07028053]
[1743339464545,0.54606571,83062.0,83061.0,0.07028053]
[1743339465138,0.18526571,83062.0,83061.0,0.07028053]
[1743339465541,0.54606571,83062.0,83061.0,0.07028053]
[1743339466642,0.51346571,83062.0,83061.0,0.07028053]
[1743339466842,0.48286571,83062.0,83061.0,0.07028053]
[1743339470246,0.48286571,83062.0,83061.0,0.19070763]
[1743339472343,0.48286571,83062.0,83061.0,0.2032118]
[1743339473942,0.48286571,83062.0,83061.0,0.07028053]
[1743339478353,0.48286571,83062.0,83061.0,0.19070763]
[1743339478652,0.12206571,83062.0,83061.0,0.19070763]
[1743339478854,0.48286571,83062.0,83061.0,0.19070763]
[1743339480555,0.12206571,83062.0,83061.0,0.19070763]
[1743339480758,0.48286571,83062.0,83061.0,0.07028053]
[1743339483155,0.48286571,83062.0,83061.0,0.19070763]
[1743339483749,0.48286571,83062.0,83061.0,1.69070763]
[1743339485862,0.12206571,83062.0,83061.0,1.69070763]
[1743339486061,0.48286571,83062.0,83061.0,1.69070763]
[1743339486960,0.48286571,83062.0,83061.0,0.19070763]
[1743339487357,0.48286571,83062.0,83061.0,0.07028053]
[1743339488053,0.18276571,83062.0,83061.0,0.07028053]
[1743339488250,0.54356571,83062.0,83061.0,1.57028053]
[1743339489271,0.18276571,83062.0,83061.0,1.57028053]
[1743339489469,0.54356571,83062.0,83061.0,1.57028053]
[1743339491170,0.18276571,83062.0,83061.0,1.57028053]
[1743339491359,0.54356571,83062.0,83061.0,1.57028053]
[1743339492263,0.18276571,83062.0,83061.0,1.57028053]
[1743339492463,0.54356571,83062.0,83061.0,1.57028053]
[1743339492664,0.18276571,83062.0,83061.0,1.57028053]
[1743339492965,0.54356571,83062.0,83061.0,1.57028053]
[1743339493166,0.18276571,83062.0,83061.0,1.57028053]
[1743339493370,0.54356571,83062.0,83061.0,1.57028053]
[1743339502069,0.48286571,83062.0,83061.0,1.57028053]
[1743339502266,0.48286571,83062.0,83061.0,1.69070763]
[1743339502670,0.48286571,83062.0,83061.0,1.70261818]
[1743339503374,0.48286571,83062.0,83061.0,1.69070763]
[1743339504360,0.48286571,83062.0,83061.0,1.57028053]
[1743339504565,0.48286571,83062.0,83061.0,0.07028053]
[1743339505565,0.48286571,83062.0,83061.0,0.19070763]
[1743339511384,0.12206571,83062.0,83061.0,0.19070763]
[1743339511684,0.48286571,83062.0,83061.0,0.19070763]
[1743339514796,0.12206571,83062.0,83061.0,0.19070763]
[1743339514993,0.48286571,83062.0,83061.0,0.19070763]
[1743339517497,0.49502828,83062.0,83061.0,0.19070763]
[1743339517697,0.12206571,83062.0,83061.0,0.19070763]
[1743339517897,0.48286571,83062.0,83061.0,0.19070763]
[1743339519702,0.12206571,83062.0,83061.0,0.19070763]
[1743339519892,0.48286571,83062.0,83061.0,0.19070763]
[1743339522101,0.48286571,83062.0,83061.0,0.07028053]
[1743339522401,0.51506571,83062.0,83061.0,0.07028053]
[1743339522901,0.54766571,83062.0,83061.0,0.07028053]
[1743339523200,0.54766571,83062.0,83061.0,0.19070763]
[1743339529607,0.18686571,83062.0,83061.0,0.19070763]
[1743339529807,0.54766571,83062.0,83061.0,0.19070763]
[1743339530006,0.18686571,83062.0,83061.0,0.19070763]
[1743339530308,0.54766571,83062.0,83061.0,0.19070763]
[1743339531106,0.18686571,83062.0,83061.0,0.19070763]
[1743339531307,0.54766571,83062.0,83061.0,0.19070763]
[1743339535601,0.18686571,83062.0,83061.0,0.19070763]
[1743339536110,0.54766571,83062.0,83061.0,0.19070763]
[1743339536798,0.3675199,83062.0,83061.0,0.19070763]
[1743339537001,0.7283199,83062.0,83061.0,0.19070763]
[1743339537201,0.6635199,83062.0,83061.0,0.19070763]
[1743339537511,0.21613259,83067.0,83066.0,0.1204199]
[1743339537811,0.2172526,83067.0,83066.0,0.1210599]
[1743339538402,0.2172526,83067.0,83066.0,0.1844599]
[1743339538598,0.2172526,83067.0,83066.0,0.19681283]
[1743339538811,0.2172526,83067.0,83066.0,0.19881283]
[1743339539412,0.2172526,83067.0,83066.0,0.20181283]
[1743339540110,0.00112001,83067.0,83066.0,0.20181283]
[1743339540703,0.1204182,83068.0,83067.0,0.1204184]
[1743339540906,0.48233821,83068.0,83067.0,0.1844584]
[1743339541607,0.48233821,83068.0,83067.0,0.3004584]
[1743339542105,0.48233821,83068.0,83067.0,0.3024584]
[1743339542412,0.12153821,83068.0,83067.0,0.3024584]
[1743339542617,0.48233821,83068.0,83067.0,0.3024584]
[1743339542818,0.12153821,83068.0,83067.0,0.3024584]
[1743339543013,0.12153821,83068.0,83067.0,0.3044584]
[1743339543218,0.48233821,83068.0,83067.0,0.3044584]
[1743339544811,0.48233821,83068.0,83067.0,0.1884584]
[1743339545512,0.15433821,83068.0,83067.0,0.1884584]
[1743339545713,0.51513821,83068.0,83067.0,0.1884584]
[1743339548408,0.15433821,83068.0,83067.0,0.1884584]
[1743339548609,0.51513821,83068.0,83067.0,0.1884584]
[1743339550018,0.36192001,83068.0,83067.0,0.1884584]
[1743339550315,0.28350261,83068.0,83067.0,0.1884584]
[1743339550512,0.0008,83068.0,83067.0,0.1884584]
[1743339550713,0.27632979,83084.0,83077.0,0.1204039]
[1743339551023,0.27632979,83084.0,83077.0,0.1211239]
[1743339551024,0.00106053,83078.0,83077.0,0.1211239]
[1743339551406,0.00106053,83078.0,83077.0,0.1825239]
[1743339551818,0.00106053,83078.0,83077.0,1.6825239]
[1743339552019,0.00018053,83078.0,83077.0,1.6825239]
[1743339552221,0.00118053,83078.0,83077.0,1.69479719]
[1743339553613,0.00118053,83078.0,83077.0,1.72779719]
[1743339556424,0.00118053,83078.0,83077.0,1.73079719]
[1743339557226,0.00018053,83078.0,83077.0,1.73079719]
[1743339557518,0.00018053,83078.0,83077.0,1.73379719]
[1743339557718,0.00018053,83078.0,83077.0,1.73279719]
[1743339558321,0.00018053,83078.0,83077.0,1.73379719]
[1743339558918,0.00018053,83078.0,83077.0,1.73279719]
[1743339559627,0.00018053,83078.0,83077.0,1.72979719]
[1743339559823,0.00018053,83078.0,83077.0,1.73279719]
[1743339570440,0.00018053,83078.0,83077.0,1.73079719]
[1743339570646,0.00018053,83078.0,83077.0,1.73279719]
[1743339573135,0.00018053,83078.0,83077.0,1.84875719]
[1743339575044,0.00018053,83078.0,83077.0,1.84675719]
[1743339575240,0.00018053,83078.0,83077.0,1.84875719]
[1743339578238,0.00018053,83078.0,83077.0,1.81575719]
[1743339581447,0.00018053,83078.0,83077.0,1.81275719]
[1743339581651,0.00018053,83078.0,83077.0,1.81875719]
[1743339582352,0.00018053,83078.0,83077.0,1.81575719]
[1743339584557,0.00018053,83078.0,83077.0,2.17655719]
[1743339586258,0.00018053,83078.0,83077.0,2.62855261]
[1743339586960,0.00018053,83078.0,83077.0,2.17655719]
[1743339592658,0.00018053,83078.0,83077.0,2.17955719]
[1743339593250,0.00018053,83078.0,83077.0,2.18255719]
[1743339593455,0.00018053,83078.0,83077.0,2.18055719]
[1743339593859,0.00018053,83078.0,83077.0,2.17955719]
[1743339596267,0.00018053,83078.0,83077.0,2.25425473]
[1743339598766,0.00018053,83078.0,83077.0,2.61505473]
[1743339599272,0.00018053,83078.0,83077.0,2.61105473]
[1743339599567,0.00018053,83078.0,83077.0,2.61705473]
[1743339600270,0.00018053,83078.0,83077.0,2.61905473]
[1743339600863,0.00018053,83078.0,83077.0,2.61297473]
[1743339601164,0.00018053,83078.0,83077.0,2.61897473]
[1743339602276,0.00018053,83078.0,83077.0,3.0708671]
[1743339604873,0.00018053,83078.0,83077.0,3.0648671]
[1743339605165,0.00018053,83078.0,83077.0,3.0708671]
[1743339605570,0.00018053,83078.0,83077.0,3.2148671]
[1743339605767,0.00018053,83078.0,83077.0,3.2208671]
[1743339606073,0.0959,83102.0,83091.0,0.1203836]
[1743339606268,0.0959,83102.0,83091.0,0.5977436]
[1743339606672,0.0959,83102.0,83091.0,2.0977436]
[1743339606875,0.0959,83102.0,83091.0,2.1577436]
[1743339607067,0.00018053,83100.0,83091.0,2.1577436]
[1743339608470,0.00018053,83100.0,83091.0,2.1607436]
[1743339608776,0.00018053,83100.0,83091.0,2.1627436]
[1743339610167,0.00018053,83100.0,83091.0,2.17169542]
[1743339610973,0.00018053,83100.0,83099.0,0.120372]
[1743339611169,0.00098053,83100.0,83099.0,0.481812]
[1743339611375,0.00018053,83100.0,83099.0,0.481812]
[1743339611775,0.00018053,83100.0,83099.0,2.0263706]
[1743339613271,0.12055113,83100.0,83099.0,0.00064]
[1743339613472,0.12135113,83100.0,83099.0,0.120372]
[1743339613771,0.18465113,83100.0,83099.0,0.121012]
[1743339615681,0.06428053,83100.0,83099.0,0.121012]
[1743339615872,0.06348053,83100.0,83099.0,0.121012]
[1743339616477,0.06348053,83100.0,83099.0,0.181512]
[1743339616678,0.06428053,83100.0,83099.0,1.681512]
[1743339616882,0.06348053,83100.0,83099.0,1.681512]
[1743339617378,0.18385113,83100.0,83099.0,1.681512]
[1743339617576,0.18385113,83100.0,83099.0,1.651512]
[1743339619883,0.06348053,83100.0,83099.0,1.651512]
[1743339620184,0.06348053,83100.0,83099.0,1.681912]
[1743339620477,0.06432053,83100.0,83099.0,1.681912]
[1743339621176,0.06348053,83100.0,83099.0,1.681912]
[1743339624179,0.03028053,83100.0,83099.0,1.681912]
[1743339624382,0.00018053,83100.0,83099.0,1.681912]
[1743339624572,0.00018053,83100.0,83099.0,1.715212]
[1743339628391,0.00018053,83100.0,83099.0,2.076012]
[1743339630983,0.00018053,83100.0,83099.0,2.4357077]
[1743339632590,0.00018053,83100.0,83099.0,2.076012]
[1743339633292,0.00018053,83100.0,83099.0,2.042712]
[1743339633981,0.00018053,83100.0,83099.0,2.158552]
[1743339634789,0.00018053,83100.0,83099.0,2.51833492]
[1743339634991,0.00018053,83100.0,83099.0,2.93993105]
[1743339635287,0.00018053,83100.0,83099.0,2.82409105]
[1743339635484,0.00018053,83100.0,83099.0,2.93993105]
[1743339636293,0.00018053,83100.0,83099.0,2.97103105]
[1743339637391,0.00018053,83100.0,83099.0,2.85519105]
[1743339637691,0.00018053,83100.0,83099.0,2.97103105]
[1743339638189,0.00018053,83100.0,83099.0,2.159252]
[1743339638692,0.00018053,83100.0,83099.0,2.128152]
[1743339639896,0.12055113,83100.0,83099.0,2.097652]
[1743339640993,0.12055113,83100.0,83099.0,1.981812]
[1743339642194,0.12055113,83100.0,83099.0,2.19770242]
[1743339642390,0.12055113,83100.0,83099.0,1.71653042]
[1743339642586,0.12055113,83100.0,83099.0,1.83690242]
[1743339642889,0.27135113,83100.0,83099.0,0.21653042]
[1743339643087,0.38719113,83100.0,83099.0,0.21653042]
[1743339643287,0.74799113,83100.0,83099.0,0.21653042]
[1743339645388,1.10879113,83100.0,83099.0,0.21653042]
[1743339647386,0.38719113,83100.0,83099.0,0.21653042]
[1743339647587,1.10879113,83100.0,83099.0,0.21653042]
[1743339649898,0.38719113,83100.0,83099.0,0.21653042]
[1743339650098,1.10879113,83100.0,83099.0,0.21653042]
[1743339654398,1.10879113,83100.0,83099.0,0.00064]
[1743339654603,0.120372,83099.0,83098.0,8e-05]
[1743339654795,0.214972,83099.0,83098.0,8e-05]
[1743339655903,0.575772,83099.0,83098.0,0.00072]
[1743339657101,0.575772,83099.0,83098.0,8e-05]
[1743339660602,0.1203778,83095.0,83094.0,0.0637]
[1743339660800,0.1203938,83084.0,83083.0,0.00018053]
[1743339661012,0.1212338,83084.0,83083.0,0.00082053]
[1743339661196,0.1212338,83084.0,83083.0,0.03402053]
[1743339661396,0.1212338,83084.0,83083.0,0.15441573]
[1743339662606,0.1192338,83084.0,83083.0,0.15441573]
[1743339663203,0.1192338,83084.0,83083.0,0.15841573]
[1743339663398,0.1192338,83084.0,83083.0,0.16241573]
[1743339664305,0.1192338,83084.0,83083.0,0.04202053]
[1743339665000,0.1192338,83084.0,83083.0,0.04138053]
[1743339665904,0.1493338,83084.0,83083.0,0.04138053]
[1743339668514,0.5101338,83084.0,83083.0,0.04138053]
[1743339674415,0.1493338,83084.0,83083.0,0.04138053]